bitfinex-derivatives/quotes_ETHF0:USTF0_20250828
["timestamp","ask_amount","ask_price","bid_price","bid_amount"]
[1756366920290,3.2078,4573.0,4572.9,2.23799]
[1756366921588,3.2078,4573.6,4573.1,0.39357]
[1756366921790,3.4357,4573.6,4573.5,1.8444]
[1756366921988,3.2078,4573.6,4573.5,1.8444]
[1756366925891,3.4357,4573.6,4573.5,1.8444]
[1756366926287,4.9672,4573.6,4573.5,1.8444]
[1756366928587,4.2533,4573.6,4572.7,1.48261]
[1756366928786,1.569,4572.9,4572.8,1.8134]
[1756366928986,0.2725,4572.7,4572.6,0.39361]
[1756366929288,1.2175,4572.6,4572.5,0.9755]
[1756366929784,1.2175,4572.6,4572.1,0.17734457]
[1756366929785,0.7132,4572.5,4572.2,0.7441]
[1756366930089,1.7991,4572.3,4572.2,1.8134]
[1756366931185,0.2301,4572.3,4572.2,1.8134]
[1756366931586,0.7132,4572.6,4572.2,1.8134]
[1756366931791,3.2078,4572.7,4572.6,1.8134]
[1756366932697,3.4379,4572.7,4572.6,1.8134]
[1756366933490,3.2078,4572.7,4572.6,1.8134]
[1756366934094,3.4379,4572.7,4572.6,1.8134]
[1756366935199,4.0465,4572.7,4572.6,1.8134]
[1756366935498,5.0069,4572.7,4572.6,1.8134]
[1756366935895,1.4476,4572.7,4572.6,1.8134]
[1756366936196,0.9433,4573.0,4572.9,1.8134]
[1756366936498,1.0647,4573.6,4573.2,1.089]
[1756366936698,0.6069,4573.6,4573.5,1.8134]
[1756366938398,0.2301,4573.6,4573.5,1.8134]
[1756366938599,3.4379,4573.7,4573.6,2.20693]
[1756366938897,4.3829,4573.7,4573.6,2.20693]
[1756366939197,3.4379,4573.7,4573.6,2.20693]
[1756366939398,3.83200408,4573.7,4573.6,2.20693]
[1756366939599,4.40020408,4573.7,4573.6,2.20693]
[1756366939796,3.45520408,4573.7,4573.6,2.20693]
[1756366940001,3.22510408,4573.7,4573.6,2.20693]
[1756366940300,3.24240816,4573.7,4573.6,2.20693]
[1756366941199,3.25067044,4573.7,4573.6,2.20693]
[1756366943801,0.04287044,4573.7,4573.6,2.20693]
[1756366947304,0.64977044,4573.7,4573.6,2.20693]
[1756366949208,0.04287044,4573.7,4573.6,2.20693]
[1756366950103,0.64977044,4573.7,4573.6,2.20693]
[1756366951707,0.04287044,4573.7,4573.6,2.20693]
[1756366957213,3.2078,4574.8,4573.6,2.20693]
[1756366957214,0.9434,4574.7,4574.6,1.8134]
[1756366957419,1.7992,4574.7,4574.6,1.8134]
[1756366957614,0.607,4574.7,4574.6,1.8134]
[1756366957819,1.7992,4574.7,4574.6,1.8134]
[1756366958423,1.7992,4574.7,4574.6,2.20684]
[1756366959123,1.7992,4574.7,4574.6,1.8134]
[1756366959824,1.1752,4574.7,4574.6,1.8134]
[1756366960023,1.1752,4574.7,4574.6,2.20684]
[1756366960221,1.7836,4574.7,4574.6,2.20684]
[1756366961124,1.7836,4574.7,4574.6,1.8134]
[1756366961618,0.733,4574.7,4574.3,0.4121]
[1756366961833,0.705,4574.5,4574.4,0.6777]
[1756366962036,1.7679,4574.5,4574.4,0.6777]
[1756366962327,1.7679,4574.5,4574.2,0.4121]
[1756366962533,1.7679,4573.6,4573.5,5.40504]
[1756366964435,1.0811,4573.6,4573.5,5.40504]
[1756366964732,1.4968,4573.9,4573.8,0.60831]
[1756366965034,1.7679,4573.9,4573.8,2.19721]
[1756366965635,1.4306,4573.9,4573.8,2.19721]
[1756366965837,4.2623,4574.3,4574.2,1.86768]
[1756366966036,3.2078,4574.3,4574.2,2.19718]
[1756366966632,0.3761,4574.8,4574.7,0.39344]
[1756366966934,0.3761,4574.8,4574.7,2.19714]
[1756366967135,4.6384,4575.0,4574.9,2.19712]
[1756366967337,4.9757,4575.0,4574.9,2.19712]
[1756366968432,4.6384,4575.0,4574.9,2.19712]
[1756366968737,3.2078,4575.0,4574.9,2.19712]
[1756366969135,4.6384,4575.0,4574.9,2.19712]
[1756366969336,1.7679,4575.0,4574.9,2.19712]
[1756366969638,0.2179,4575.0,4574.9,2.19712]
[1756366969842,0.594,4575.0,4574.9,2.19712]
[1756366970438,0.2179,4575.0,4574.9,2.19712]
[1756366970837,0.594,4575.0,4574.9,1.8037]
[1756366972338,0.2179,4575.0,4574.9,1.8037]
[1756366973245,1.1595,4575.0,4574.9,1.8037]
[1756366973542,1.4306,4575.0,4574.9,1.8037]
[1756366973839,0.594,4575.0,4574.9,1.8037]
[1756366974136,0.3495,4575.3,4574.9,1.8037]
[1756366974343,1.1595,4575.3,4575.2,1.8037]
[1756366974543,1.7679,4575.3,4575.2,1.8037]
[1756366977648,1.7679,4575.3,4575.2,2.19709]
[1756366978547,1.7679,4575.3,4575.2,1.8037]
[1756366978746,0.3761,4575.5,4575.4,2.19708]
[1756366978946,0.9435,4575.7,4575.6,1.8037]
[1756366979344,3.5839,4576.0,4575.9,0.39333]
[1756366979645,3.2078,4576.0,4575.9,2.19703]
[1756366981650,3.23792888,4576.0,4575.9,2.19703]
[1756366981949,3.23792888,4576.0,4575.9,2.37213894]
[1756366982250,0.03012888,4576.0,4575.9,2.37213894]
[1756366984645,0.03012888,4576.0,4575.9,2.19703]
[1756366985451,0.97382888,4576.0,4575.9,2.19703]
[1756366985950,1.79822888,4576.0,4575.9,2.19703]
[1756366986846,1.79822888,4576.0,4575.9,1.8037]
[1756366987048,1.79822888,4576.0,4575.9,1.3916]
[1756366987249,0.2179,4575.7,4575.6,0.39336]
[1756366987451,1.7681,4575.7,4575.6,1.07106]
[1756366987652,1.79822888,4575.7,4575.6,2.19706]
[1756366988955,1.11142888,4575.7,4575.6,2.19706]
[1756366989156,0.24942888,4575.7,4575.6,5.40486]
[1756366989345,0.62502888,4575.7,4575.6,5.40486]
[1756366989550,1.41582888,4575.7,4575.6,5.40486]
[1756366989758,1.73092888,4575.7,4575.6,5.40486]
[1756366991151,1.10262888,4575.7,4575.6,5.40486]
[1756366991956,0.62502888,4575.7,4575.6,5.40486]
[1756366992150,0.03012888,4575.7,4575.6,5.40486]
[1756366992545,0.24942888,4575.7,4575.6,5.40486]
[1756366992752,0.62502888,4575.7,4575.6,5.40486]
[1756366993051,1.73092888,4575.7,4575.6,5.40486]
[1756366993558,1.73092888,4575.7,4575.6,1.8037]
[1756366993857,1.73092888,4575.7,4575.6,1.3916]
[1756366994250,1.73092888,4575.7,4575.3,0.4023]
[1756366994456,1.7008,4575.1,4575.0,1.28381]
[1756366994755,1.73092888,4575.1,4575.0,2.17781]
[1756367002155,1.73092888,4575.1,4575.0,1.7844]
[1756367002359,1.73092888,4575.1,4575.0,2.17781]
[1756367006858,4.2117,4575.4,4575.0,1.7844]
[1756367007066,4.9086,4575.4,4575.3,2.1471442]
[1756367009366,5.30198,4575.4,4575.3,2.1471442]
[1756367009766,5.30198,4575.4,4575.3,1.7844]
[1756367015668,2.09418,4575.4,4575.3,1.7844]
[1756367016769,2.09418,4575.4,4575.3,1.3821]
[1756367017075,2.09418,4575.4,4575.3,1.7844]
[1756367018373,2.09418,4575.4,4575.3,0.6738]
[1756367018566,2.09418,4575.4,4575.3,1.5637]
[1756367018867,2.09418,4575.4,4575.3,1.7824]
[1756367025566,1.77908,4575.4,4575.3,1.7824]
[1756367025974,2.11278,4575.4,4575.3,1.7824]
[1756367027471,3.2078,4575.5,4575.4,2.15108]
[1756367027676,0.3756,4575.9,4575.6,0.39335]
[1756367027872,3.2078,4576.0,4575.9,1.062]
[1756367028073,3.2078,4576.0,4575.9,2.06562059]
[1756367028273,3.2078,4576.0,4575.9,1.7577]
[1756367028868,0.9171,4576.1,4576.0,1.7577]
[1756367029066,0.9171,4576.1,4576.0,2.06538821]
[1756367029270,1.4618,4576.1,4576.0,1.7577]
[1756367029873,1.7485,4576.1,4576.0,1.7577]
[1756367030672,3.9194,4576.5,4576.4,1.7577]
[1756367031381,4.9563,4576.5,4576.4,1.7577]
[1756367032777,4.9563,4576.5,4576.4,1.3448]
[1756367033284,4.9563,4576.5,4576.4,1.7577]
[1756367036580,4.9563,4576.5,4576.4,1.3448]
[1756367036781,4.9563,4576.5,4576.4,0.6491]
[1756367037386,3.2078,4576.5,4575.8,0.39334]
[1756367037580,1.2009,4576.4,4576.3,0.4797]
[1756367037786,1.2009,4576.4,4576.3,1.2289]
[1756367039086,21.0399,4576.4,4576.3,1.2289]
[1756367040379,20.7123,4576.4,4575.7,0.7492]
[1756367040589,1.2016,4575.8,4575.7,1.2289]
[1756367042489,1.7492,4575.8,4575.7,1.5417]
[1756367042796,1.94269793,4575.8,4575.7,1.7577]
[1756367044488,1.60899793,4575.8,4575.7,1.7577]
[1756367045594,0.19349793,4575.8,4575.7,2.15105]
[1756367045791,19.838,4576.4,4576.3,0.216]
[1756367045989,3.4217,4576.5,4576.4,1.7577]
[1756367046189,4.1049,4576.5,4576.4,1.7577]
[1756367046389,4.4325,4576.5,4576.4,1.7577]
[1756367046994,3.4217,4576.5,4576.4,1.7577]
[1756367047196,3.2078,4576.5,4576.4,1.7577]
[1756367047696,4.1049,4576.5,4576.4,1.7577]
[1756367048997,0.8971,4576.5,4576.4,1.7577]
[1756367049200,0.8971,4576.5,4576.4,3.32636959]
[1756367049495,20.7341,4576.5,4576.4,3.32636959]
[1756367049694,0.3276,4576.7,4576.4,3.01356959]
[1756367049895,20.9483,4576.6,4576.5,1.7247]
[1756367050093,21.5731,4576.6,4576.5,1.7247]
[1756367050290,1.7361,4576.6,4576.5,1.7247]
[1756367050595,19.837,4576.8,4576.7,1.7247]
[1756367050791,21.5731,4576.8,4576.7,0.8303]
[1756367051098,1.7361,4576.7,4576.6,1.56866959]
[1756367051297,0.8916,4576.7,4576.6,3.29336959]
[1756367051496,0.8916,4576.7,4576.6,1.7247]
[1756367051497,0.6225,4576.7,4576.6,1.7247]
[1756367051699,0.6225,4576.7,4576.6,3.29325278]
[1756367051898,20.4585,4576.7,4576.6,3.68652278]
[1756367052393,20.4585,4576.7,4576.6,3.29325278]
[1756367052594,20.4585,4576.7,4576.6,3.68652278]
[1756367052798,0.6248,4577.0,4576.6,2.11797]
[1756367052995,21.5721,4576.9,4576.8,1.7247]
[1756367054796,21.5721,4576.9,4576.8,2.11795]
[1756367054997,21.5721,4576.9,4576.8,3.68653027]
[1756367055196,21.5721,4576.9,4576.8,2.11795]
[1756367055499,1.4159,4576.9,4576.8,3.68653027]
[1756367055697,19.835,4577.0,4576.9,1.09695]
[1756367055999,20.2519,4577.0,4576.9,3.68701462]
[1756367056195,20.4575,4577.0,4576.9,3.29376462]
[1756367056395,20.4575,4577.0,4576.9,1.7247]
[1756367056596,21.0312,4577.0,4576.9,1.7247]
[1756367056791,21.2509,4577.0,4576.9,3.29403586]
[1756367056996,21.5711,4577.0,4576.9,3.29403586]
[1756367057397,21.5711,4577.0,4576.9,1.7247]
[1756367057597,21.5711,4577.0,4576.9,2.11795]
[1756367057798,21.7520482,4577.0,4576.9,2.11795]
[1756367058097,1.9170482,4577.0,4576.9,1.3211]
[1756367058297,22.07937342,4577.0,4576.7,1.56978615]
[1756367058493,1.0417,4576.7,4576.3,1.56978615]
[1756367058803,1.7361,4576.4,4576.3,1.56978615]
[1756367059101,1.91702231,4576.4,4576.3,1.56978615]
[1756367060404,1.7361,4576.2,4576.1,1.56978615]
[1756367060602,1.91702231,4576.2,4576.1,1.56978615]
[1756367060990,1.0417,4576.1,4576.0,1.56978615]
[1756367061300,1.91702231,4576.1,4576.0,1.56978615]
[1756367062702,1.91702231,4576.1,4575.9,1.56978615]
[1756367062906,1.91702231,4576.0,4575.9,1.56978615]
[1756367063295,21.75002231,4576.0,4575.9,1.56978615]
[1756367063599,1.1113,4575.8,4575.7,1.56978615]
[1756367063806,1.91702231,4575.8,4575.5,1.56978615]
[1756367064007,3.2078,4576.1,4575.5,2.61718615]
[1756367064008,1.7361,4575.6,4575.5,2.61718615]
[1756367064300,1.91702231,4575.6,4575.5,1.7247]
[1756367067106,1.91702231,4575.6,4575.5,0.6174]
[1756367067302,0.87532231,4575.6,4575.3,1.56978615]
[1756367067604,1.7361,4575.4,4575.3,2.67708615]
[1756367067799,1.91702231,4575.4,4575.3,1.1073]
[1756367068005,1.91702231,4575.4,4575.3,1.7247]
[1756367068006,21.75102231,4575.4,4575.3,1.7247]
[1756367069201,21.12622231,4575.4,4575.3,2.11808]
[1756367069404,20.0147023,4575.4,4575.3,3.68786615]
[1756367070009,20.01468847,4575.4,4575.3,3.68786615]
[1756367070602,0.59758847,4575.4,4575.3,3.68786615]
[1756367071009,0.18068847,4575.4,4575.3,3.68786615]
[1756367071509,0.80318847,4575.4,4575.3,3.68786615]
[1756367071810,0.38628847,4575.4,4575.3,3.68786615]
[1756367072108,0.18068847,4575.4,4575.3,3.68786615]
[1756367072812,0.18068847,4575.4,4575.3,2.11808]
[1756367073713,0.18068847,4575.4,4575.3,2.33664]
[1756367074314,0.18068847,4575.4,4575.3,2.11808]
[1756367074717,1.91678847,4575.4,4575.3,1.7247]
[1756367075110,1.59658847,4575.4,4575.3,2.11808]
[1756367075416,0.18068847,4575.4,4575.3,2.11808]
[1756367076307,0.80318847,4575.4,4575.3,2.11808]
[1756367076507,0.18068847,4575.4,4575.3,2.11808]
[1756367079228,0.61018847,4575.4,4575.3,2.11808]
[1756367079515,0.18068847,4575.4,4575.3,2.11808]
[1756367080022,0.18344451,4575.4,4575.3,1.09708]
[1756367080314,0.49414451,4575.7,4575.4,0.39337]
[1756367080519,1.7365,4575.7,4575.6,3.00970672]
[1756367080816,1.91994986,4575.7,4575.6,3.32480672]
[1756367081221,1.91994986,4575.7,4575.6,1.757]
[1756367081922,1.29354986,4575.7,4575.6,1.757]
[1756367082119,0.18344986,4575.7,4575.6,2.15036]
[1756367086023,0.18344986,4575.7,4575.6,4.11369406]
[1756367086329,0.18344986,4575.7,4575.6,2.15036]
[1756367090328,3.2078,4576.1,4576.0,1.09462]
[1756367090517,5.12815479,4576.1,4576.0,1.4764]
[1756367090924,5.12815479,4576.1,4576.0,1.96368907]
[1756367091122,1.256,4576.0,4575.9,1.5524]
[1756367091324,1.92035479,4576.0,4575.9,1.757]
[1756367091528,1.92035479,4576.0,4575.9,2.15033]
[1756367091728,1.92035479,4576.0,4575.9,4.11401907]
[1756367092025,0.18385479,4576.0,4575.9,4.11401907]
[1756367092232,0.18385479,4576.0,4575.9,2.15033]
[1756367093131,0.18385479,4576.0,4575.9,4.11368152]
[1756367093834,3.2078,4576.1,4576.0,2.15032]
[1756367094031,3.39155383,4576.1,4576.0,2.15032]
[1756367094334,3.39155383,4576.1,4576.0,4.11367152]
[1756367094534,3.39155383,4576.1,4576.0,2.15032]
[1756367095031,3.2078,4576.7,4576.6,2.15027]
[1756367095232,4.4317,4576.7,4576.6,2.15027]
[1756367095527,3.2078,4576.7,4576.6,2.15027]
[1756367096829,1.7365,4577.0,4576.9,1.83515]
[1756367097028,1.7365,4577.0,4576.9,2.15025]
[1756367097229,1.7365,4577.0,4576.9,1.757]
[1756367097628,1.7365,4577.0,4576.9,1.5690835]
[1756367099028,1.7365,4577.0,4576.9,2.1953835]
[1756367100033,1.7365,4577.0,4576.9,0.6263]
[1756367100530,0.2001,4576.7,4576.6,1.5690835]
[1756367100734,0.2001,4576.7,4576.6,3.3260835]
[1756367100735,1.7298,4576.7,4576.6,3.3260835]
[1756367101335,1.7298,4576.7,4576.6,3.71920973]
[1756367101538,0.6296,4576.7,4576.6,2.15027]
[1756367102635,1.7298,4576.7,4576.6,1.757]
[1756367102836,1.7298,4576.7,4576.6,3.32585903]
[1756367103534,1.7298,4576.7,4576.6,2.89645903]
[1756367103726,1.7298,4576.7,4576.6,3.32585903]
[1756367104129,1.7298,4576.7,4576.6,3.71912903]
[1756367105641,1.7298,4576.7,4576.6,3.32585903]
[1756367106131,1.7298,4576.7,4576.6,3.71912903]
[1756367106326,0.9082,4577.0,4576.9,1.83905]
[1756367106538,0.9082,4577.0,4576.9,2.15025]
[1756367106742,1.2172,4577.0,4576.9,2.15025]
[1756367106941,1.39844171,4577.0,4576.9,2.15025]
[1756367107135,0.38134171,4577.0,4576.9,2.15025]
[1756367107337,0.18124171,4577.0,4576.9,2.15025]
[1756367108038,20.2492,4577.9,4577.8,0.39317]
[1756367108238,0.6223,4578.2,4578.1,1.6801]
[1756367109134,0.1991,4578.2,4578.1,1.6801]
[1756367109537,0.1991,4578.2,4578.1,3.24899473]
[1756367109842,1.7061,4578.2,4578.1,1.6801]
[1756367110842,1.1,4578.2,4578.1,1.6801]
[1756367114041,0.8938,4578.2,4578.1,1.6801]
[1756367117246,3.2078,4578.4,4578.2,0.3101]
[1756367117449,1.507,4578.3,4578.2,1.6801]
[1756367117647,1.7061,4578.3,4578.2,1.6801]
[1756367118349,0.8938,4578.3,4578.2,1.6801]
[1756367118653,0.1991,4578.3,4578.2,1.6801]
[1756367118946,3.2078,4578.4,4578.2,0.6623]
[1756367119149,3.8301,4578.4,4578.3,1.6801]
[1756367121056,4.3078,4578.4,4578.3,1.6801]
[1756367121662,4.6138,4578.4,4578.3,1.6801]
[1756367121959,4.9139,4578.4,4577.9,1.56889473]
[1756367122154,4.9139,4578.4,4577.7,0.6024]
[1756367122155,0.4706,4577.8,4577.7,0.6024]
[1756367122362,4.9139,4577.8,4577.5,0.6024]
[1756367122562,0.6768,4577.6,4577.5,0.6024]
[1756367122758,1.7061,4577.6,4577.5,1.6801]
[1756367123266,0.6223,4577.9,4577.8,2.07327]
[1756367123460,0.1991,4577.9,4577.8,2.07327]
[1756367123655,0.4706,4578.0,4577.9,1.0178]
[1756367123966,1.1998,4578.0,4577.9,1.6801]
[1756367124466,1.7061,4578.0,4577.9,1.6801]
[1756367124656,1.7061,4578.0,4577.9,2.07326]
[1756367124657,1.406,4578.0,4577.9,2.07326]
[1756367124859,0.8938,4578.0,4577.9,3.24598078]
[1756367127767,0.6061,4578.3,4577.9,3.24598078]
[1756367127970,1.4001,4578.1,4577.9,1.56588078]
[1756367128171,1.7061,4578.1,4578.0,1.6801]
[1756367131269,1.406,4578.1,4578.0,1.6801]
[1756367131470,1.406,4578.1,4578.0,3.24598078]
[1756367132065,1.7061,4578.1,4578.0,3.24598078]
[1756367133168,1.7061,4578.1,4578.0,1.6801]
[1756367133567,1.7061,4578.1,4578.0,3.24803843]
[1756367134176,1.7061,4578.1,4578.0,1.6801]
[1756367135167,1.406,4578.1,4578.0,1.6801]
[1756367135672,0.299,4578.3,4578.0,2.07325]
[1756367135872,3.7059,4578.4,4578.3,1.6801]
[1756367136069,3.2078,4578.4,4578.3,3.05012522]
[1756367136275,1.399,4579.2,4579.1,1.6801]
[1756367136566,1.6991,4579.2,4579.1,3.25022128]
[1756367136761,1.6991,4579.2,4579.1,1.6801]
[1756367137369,1.399,4579.2,4579.1,1.6801]
[1756367138370,0.1991,4579.2,4579.1,1.6801]
[1756367138677,11.2913,4579.9,4579.8,0.2145]
[1756367138974,11.2913,4579.9,4579.8,0.5335]
[1756367139175,12.57415,4579.9,4579.8,0.5335]
[1756367139471,1.0645,4579.8,4579.6,1.0497]
[1756367139677,1.7558,4579.7,4579.6,0.642]
[1756367140272,1.7558,4579.7,4579.6,0.319]
[1756367140674,0.6913,4579.7,4579.2,2.21207203]
[1756367140869,1.7558,4579.3,4579.2,0.642]
[1756367141074,1.7558,4579.3,4579.2,1.7413]
[1756367141975,1.7558,4579.3,4579.2,3.31137203]
[1756367142866,1.7558,4579.3,4579.2,1.7413]
[1756367143071,1.7558,4579.3,4579.2,3.31137203]
[1756367143267,1.7558,4579.3,4579.2,1.7413]
[1756367144382,1.4287,4579.3,4579.2,1.7413]
[1756367144579,1.4287,4579.3,4579.2,2.13435]
[1756367144777,1.4287,4579.3,4579.2,3.70442203]
[1756367145081,1.4287,4579.3,4579.2,2.13435]
[1756367145082,1.1123,4579.3,4579.2,2.13435]
[1756367145678,0.2185,4579.3,4579.2,1.08465]
[1756367145878,0.9559,4579.3,4579.2,0.6916]
[1756367146078,1.2284,4579.3,4579.2,0.6916]
[1756367146278,1.7558,4579.3,4579.2,3.30859534]
[1756367147683,0.6435,4580.0,4579.2,1.56729534]
[1756367147883,1.1123,4579.9,4579.8,1.4682]
[1756367148074,1.1123,4579.9,4579.8,0.319]
[1756367148278,0.6913,4579.9,4579.6,0.319]
[1756367148479,1.7558,4579.8,4579.7,1.2642]
[1756367148685,1.7558,4579.8,4579.7,1.7413]
[1756367151086,1.0645,4579.7,4579.1,1.96034534]
[1756367151289,1.7558,4579.3,4579.2,2.13435]
[1756367152089,1.1123,4579.3,4579.2,3.70164534]
[1756367152287,1.4287,4579.3,4579.2,3.70164534]
[1756367153282,1.4287,4579.3,4579.2,3.30859534]
[1756367153884,1.7558,4579.3,4579.2,3.30859534]
[1756367154379,1.4287,4579.3,4579.2,3.70164534]
[1756367154586,0.6395,4579.3,4579.2,3.70164534]
[1756367154784,0.3271,4579.6,4579.3,0.642]
[1756367154987,1.0184,4579.6,4579.5,1.7413]
[1756367155587,1.7558,4579.6,4579.5,1.7413]
[1756367156891,0.6913,4579.2,4578.8,0.642]
[1756367157192,1.7558,4579.0,4578.9,1.7413]
[1756367161693,1.7558,4579.0,4578.9,2.13437]
[1756367163197,1.7558,4579.0,4578.9,3.70166534]
[1756367163689,1.7558,4579.0,4578.9,3.30859534]
[1756367163890,1.4287,4579.0,4578.9,3.30859534]
[1756367164092,1.4287,4579.0,4578.9,3.70166534]
[1756367164295,3.2078,4580.1,4578.9,2.61699534]
[1756367164491,1.7545,4579.6,4579.5,1.7413]
[1756367165888,1.7545,4579.6,4579.5,1.3336]
[1756367166089,1.7545,4579.6,4579.5,1.72662]
[1756367166292,1.7545,4579.6,4579.5,2.13432]
[1756367166494,1.7545,4579.6,4579.5,1.3336]
[1756367166694,1.7545,4579.6,4579.5,0.642]
[1756367166886,0.3151,4579.5,4579.3,0.642]
[1756367167090,1.7545,4579.4,4579.3,1.03504]
[1756367167494,1.7545,4579.4,4579.3,2.13434]
[1756367173402,1.4274,4579.4,4579.3,2.13434]
[1756367174305,0.912,4579.4,4579.3,2.13434]
[1756367174500,0.6395,4579.4,4579.3,2.13434]
[1756367174901,0.2185,4579.4,4579.3,2.13434]
[1756367175601,1.2402,4579.6,4579.5,2.10722]
[1756367176002,1.7336,4579.6,4579.5,2.10722]
[1756367176404,1.7336,4579.6,4579.5,1.7142]
[1756367176605,1.7336,4579.6,4579.5,0.6166]
[1756367176996,1.7336,4579.6,4579.5,1.42142]
[1756367177204,1.7336,4579.6,4579.5,1.0284]
[1756367177808,1.7336,4579.6,4579.5,1.42142]
[1756367178010,1.7336,4579.6,4579.5,1.62532]
[1756367178205,1.7336,4579.6,4579.5,2.10722]
[1756367180409,1.7336,4579.6,4579.5,1.7142]
[1756367180610,1.7336,4579.6,4579.5,2.10722]
[1756367183909,1.1152,4579.9,4579.8,1.07879]
[1756367184114,1.4272,4579.9,4579.8,2.10719]
[1756367184309,1.7336,4579.9,4579.8,2.10719]
[1756367187403,1.4272,4579.9,4579.8,2.10719]
[1756367187609,0.6218,4579.9,4579.8,2.10719]
[1756367187803,19.807,4580.0,4579.9,1.42139]
[1756367188009,19.807,4580.0,4579.9,2.10719]
[1756367188310,20.4288,4580.0,4579.9,2.10719]
[1756367188514,21.0267,4580.0,4579.9,2.10719]
[1756367188913,21.5396,4580.0,4579.9,2.10719]
[1756367189111,21.5396,4580.0,4579.9,1.7142]
[1756367189315,1.7336,4579.6,4579.5,0.6166]
[1756367189611,1.7336,4579.6,4579.5,0.3009]
[1756367189612,3.10362522,4579.6,4579.5,0.3009]
[1756367189811,3.10362522,4579.6,4579.5,1.00962]
[1756367190014,3.10362522,4579.6,4579.5,1.42282]
[1756367190212,3.10362522,4579.6,4579.5,1.0298]
[1756367190413,2.07802522,4579.6,4579.4,3.2078]
[1756367190613,21.5396,4579.5,4579.4,3.60083]
[1756367191218,21.5396,4579.5,4579.4,4.21743]
[1756367191612,21.5396,4579.5,4579.4,4.62923]
[1756367191813,21.5396,4579.5,4579.4,4.83313]
[1756367192117,21.5396,4579.5,4579.4,5.31503]
[1756367192311,20.9212,4579.5,4579.4,5.31503]
[1756367193119,21.2332,4579.5,4579.4,5.31503]
[1756367193318,21.5396,4579.5,4579.4,5.31503]
[1756367194817,20.9212,4579.5,4579.4,5.31503]
[1756367195214,21.2332,4579.5,4579.4,5.31503]
[1756367195421,21.5396,4579.5,4579.4,5.31503]
[1756367195713,0.6218,4579.9,4579.8,1.4416]
[1756367195918,0.6218,4579.9,4579.8,1.7142]
[1756367196219,0.6218,4579.9,4579.8,2.1072]
[1756367197220,1.7336,4579.9,4579.8,1.7142]
[1756367198322,1.7336,4579.9,4579.8,2.1072]
[1756367199414,1.4272,4579.9,4579.8,2.1072]
[1756367200018,1.7419,4579.9,4579.8,2.1072]
[1756367201515,1.7419,4579.9,4579.8,1.7142]
[1756367202017,1.6954,4579.6,4579.5,0.68812]
[1756367202217,1.6954,4579.6,4579.5,2.05552]
[1756367204522,1.6954,4579.6,4579.4,3.2078]
[1756367204523,2.04032522,4579.6,4579.0,1.9626516]
[1756367204724,1.6954,4579.1,4579.0,1.66607]
[1756367204916,21.5004,4579.1,4579.0,2.05557]
[1756367208930,1.0922,4579.1,4579.0,2.05557]
[1756367209622,0.8914,4579.1,4579.0,2.05557]
[1756367209927,0.6199,4579.1,4579.0,2.05557]
[1756367210230,0.198,4579.1,4579.0,2.05557]
[1756367210417,19.805,4579.2,4579.1,0.39306]
[1756367210621,19.805,4579.2,4579.1,2.05556]
[1756367211121,21.1857,4579.2,4579.1,1.6625]
[1756367211421,21.5004,4579.2,4579.1,2.05556]
[1756367212729,1.6954,4579.2,4579.1,2.05556]
[1756367212926,21.5004,4579.2,4579.1,2.05556]
[1756367213534,20.6964,4579.2,4579.1,2.05556]
[1756367214728,21.1857,4579.2,4579.1,2.05556]
[1756367214935,21.5004,4579.2,4579.1,2.05556]
[1756367218336,21.1857,4579.2,4579.1,2.05556]
[1756367219036,21.5004,4579.2,4579.1,2.05556]
[1756367222440,21.2119,4579.2,4579.0,0.39306]
[1756367222638,0.9588,4579.1,4579.0,0.39306]
[1756367222839,1.6954,4579.1,4579.0,0.99546]
[1756367223141,1.6954,4579.1,4579.0,1.38496]
[1756367223439,1.6954,4579.1,4579.0,1.58316]
[1756367223635,1.6954,4579.1,4579.0,1.78626]
[1756367223834,1.6954,4579.1,4579.0,2.05556]
[1756367224738,0.6703,4578.6,4578.5,1.9626516]
[1756367224933,1.6954,4577.7,4577.6,1.9626516]
[1756367225236,1.6954,4577.7,4577.6,0.8006]
[1756367225640,1.6954,4577.7,4577.6,0.6024]
[1756367226038,1.4069,4577.7,4577.5,0.2951]
[1756367226343,1.6954,4577.6,4577.5,0.6024]
[1756367226544,1.6954,4577.6,4577.4,0.3895]
[1756367226731,0.2885,4577.5,4577.4,0.3073]
[1756367226934,0.7104,4577.4,4577.2,3.60102]
[1756367227139,1.0922,4577.3,4577.2,4.66112]
[1756367227442,1.3807,4577.3,4577.2,4.66112]
[1756367227642,0.4219,4578.3,4578.0,0.9657]
[1756367227834,0.6199,4578.3,4578.2,2.05563]
[1756367228239,0.8914,4578.3,4578.2,2.05563]
[1756367228641,1.3719,4578.3,4578.2,2.05563]
[1756367229640,1.6862,4578.3,4578.2,2.05563]
[1756367229947,1.6862,4578.3,4578.2,1.6625]
[1756367230344,0.6552,4577.8,4577.7,3.2078]
[1756367230549,1.3377,4577.8,4577.7,4.9061]
[1756367230844,0.191,4577.8,4577.7,4.9061]
[1756367231148,1.3377,4577.9,4577.8,2.09147]
[1756367231347,19.814,4578.0,4577.7,3.2078]
[1756367231348,0.9426,4578.2,4578.1,0.6711]
[1756367231648,21.477,4578.2,4578.1,1.6983]
[1756367232449,21.477,4578.2,4577.9,3.2078]
[1756367232652,1.4589,4578.1,4578.0,0.5946]
[1756367232843,1.652,4578.1,4578.0,1.2657]
[1756367233044,1.652,4578.1,4578.0,1.6983]
[1756367233946,1.652,4578.1,4578.0,1.3119]
[1756367234153,1.652,4578.1,4578.0,0.5946]
[1756367235250,1.652,4577.6,4577.5,0.5946]
[1756367236550,1.652,4577.6,4577.5,0.7869]